[Event "Titled Tuesday Blitz June 21 Late 2022"]
[White "Veiga, Jose Francisco R P Neves"]
[Black "Mendonca, Leon Luke"]
[WhiteFideId "1930087"]
[BlackFideId "35028561"]
[WhiteElo "2447"]
[BlackElo "2776"]
[Result "1/2-1/2"]
[Round "01"]
[TimeControl "180+1"]
[Date "2022.06.22"]
[WhiteClock "0:00:19"]
[BlackClock "0:00:13"]

1. Nf3 {[%clk 0:02:56]}  Nf6 {[%clk 0:02:57]} 2. c4 {[%clk 0:02:55]}  b6 {[%clk 0:02:56]} 3. b3 {[%clk 0:02:54]}  Bb7 {[%clk 0:02:56]} 4. g3 {[%clk 0:02:54]}  e6 {[%clk 0:02:53]} 5. Bg2 {[%clk 0:02:54]}  Be7 {[%clk 0:02:53]} 6. O-O {[%clk 0:02:55]}  O-O {[%clk 0:02:53]} 7. Bb2 {[%clk 0:02:55]}  d5 {[%clk 0:02:53]} 8. cxd5 {[%clk 0:02:53]}  exd5 {[%clk 0:02:51]} 9. d4 {[%clk 0:02:53]}  Re8 {[%clk 0:02:50]} 10. Nc3 {[%clk 0:02:49]}  Nbd7 {[%clk 0:02:47]} 11. Rc1 {[%clk 0:02:41]}  a6 {[%clk 0:02:45]} 12. Ne5 {[%clk 0:02:25]}  Bd6 {[%clk 0:02:35]} 13. Nd3 {[%clk 0:02:24]}  Ne4 {[%clk 0:02:25]} 14. e3 {[%clk 0:02:17]}  Ndf6 {[%clk 0:02:13]} 15. Ne2 {[%clk 0:02:15]}  h5 {[%clk 0:02:01]} 16. h4 {[%clk 0:02:01]}  Bf8 {[%clk 0:01:37]} 17. Nef4 {[%clk 0:01:56]}  g6 {[%clk 0:01:36]} 18. Ne5 {[%clk 0:01:55]}  Bd6 {[%clk 0:01:18]} 19. Qc2 {[%clk 0:01:38]}  Rc8 {[%clk 0:01:07]} 20. f3 {[%clk 0:01:25]}  Nxg3 {[%clk 0:01:02]} 21. Nfxg6 {[%clk 0:01:24]}  c5 {[%clk 0:00:48]} 22. Qd3 {[%clk 0:01:01]}  cxd4 {[%clk 0:00:34]} 23. exd4 {[%clk 0:01:00]}  Nxf1 {[%clk 0:00:29]} 24. Rxf1 {[%clk 0:00:46]}  Rc7 {[%clk 0:00:29]} 25. Nf4 {[%clk 0:00:41]}  Kh8 {[%clk 0:00:26]} 26. Qf5 {[%clk 0:00:34]}  Rg8 {[%clk 0:00:18]} 27. Nxh5 {[%clk 0:00:29]}  Nxh5 {[%clk 0:00:15]} 28. Qxh5+ {[%clk 0:00:30]}  Kg7 {[%clk 0:00:15]} 29. Bc1 {[%clk 0:00:17]}  Rh8 {[%clk 0:00:15]} 30. Qg4+ {[%clk 0:00:17]}  Kf8 {[%clk 0:00:14]} 31. Bg5 {[%clk 0:00:18]}  Qc8 {[%clk 0:00:11]} 32. Qf4 {[%clk 0:00:15]}  Qe6 {[%clk 0:00:11]} 33. Kh2 {[%clk 0:00:12]}  Bc8 {[%clk 0:00:11]} 34. Re1 {[%clk 0:00:10]}  Rc2 {[%clk 0:00:10]} 35. Kg1 {[%clk 0:00:09]}  Kg8 {[%clk 0:00:08]} 36. Bf6 {[%clk 0:00:08]}  Rh7 {[%clk 0:00:05]} 37. Qg5+ {[%clk 0:00:08]}  Kf8 {[%clk 0:00:05]} 38. Ng6+ {[%clk 0:00:08]}  fxg6 {[%clk 0:00:06]} 39. Rxe6 {[%clk 0:00:09]}  Bxe6 {[%clk 0:00:07]} 40. Qxg6 {[%clk 0:00:09]}  Rf7 {[%clk 0:00:06]} 41. Qxc2 {[%clk 0:00:09]}  Rxf6 {[%clk 0:00:06]} 42. Qc6 {[%clk 0:00:08]}  Ke7 {[%clk 0:00:06]} 43. Qxb6 {[%clk 0:00:08]}  Bf5 {[%clk 0:00:05]} 44. Qa7+ {[%clk 0:00:08]}  Ke6 {[%clk 0:00:05]} 45. Kf2 {[%clk 0:00:08]}  Rg6 {[%clk 0:00:05]} 46. h5 {[%clk 0:00:08]}  Rg5 {[%clk 0:00:05]} 47. Qxa6 {[%clk 0:00:08]}  Rxh5 {[%clk 0:00:06]} 48. Qe2+ {[%clk 0:00:08]}  Kd7 {[%clk 0:00:06]} 49. Qb5+ {[%clk 0:00:08]}  Ke6 {[%clk 0:00:06]} 50. f4 {[%clk 0:00:08]}  Rh4 {[%clk 0:00:05]} 51. Qxd5+ {[%clk 0:00:08]}  Ke7 {[%clk 0:00:04]} 52. Qxf5 {[%clk 0:00:08]}  Rxf4+ {[%clk 0:00:05]} 53. Qxf4 {[%clk 0:00:08]}  Bxf4 {[%clk 0:00:05]} 54. Kf3 {[%clk 0:00:09]}  Bc1 {[%clk 0:00:06]} 55. Ke4 {[%clk 0:00:09]}  Kd6 {[%clk 0:00:06]} 56. Kd3 {[%clk 0:00:08]}  Ba3 {[%clk 0:00:06]} 57. Kc4 {[%clk 0:00:09]}  Kc7 {[%clk 0:00:06]} 58. b4 {[%clk 0:00:09]}  Kb6 {[%clk 0:00:07]} 59. b5 {[%clk 0:00:08]}  Bd6 {[%clk 0:00:07]} 60. Bc6 {[%clk 0:00:09]}  Ka5 {[%clk 0:00:07]} 61. Kd5 {[%clk 0:00:09]}  Ba3 {[%clk 0:00:07]} 62. Ke6 {[%clk 0:00:10]}  Kb6 {[%clk 0:00:08]} 63. d5 {[%clk 0:00:10]}  Kc7 {[%clk 0:00:08]} 64. Ke5 {[%clk 0:00:10]}  Bd6+ {[%clk 0:00:08]} 65. Kd4 {[%clk 0:00:10]}  Ba3 {[%clk 0:00:09]} 66. Kc4 {[%clk 0:00:11]}  Kb6 {[%clk 0:00:10]} 67. Kb3 {[%clk 0:00:11]}  Bd6 {[%clk 0:00:09]} 68. a4 {[%clk 0:00:12]}  Ka5 {[%clk 0:00:10]} 69. Kc4 {[%clk 0:00:11]}  Kxa4 {[%clk 0:00:09]} 70. b6+ {[%clk 0:00:12]}  Ka5 {[%clk 0:00:10]} 71. b7 {[%clk 0:00:12]}  Kb6 {[%clk 0:00:10]} 72. Kd4 {[%clk 0:00:12]}  Kc7 {[%clk 0:00:11]} 73. Ke4 {[%clk 0:00:13]}  Ba3 {[%clk 0:00:10]} 74. Kf5 {[%clk 0:00:14]}  Bb4 {[%clk 0:00:10]} 75. Ke6 {[%clk 0:00:15]}  Ba3 {[%clk 0:00:11]} 76. Kf7 {[%clk 0:00:16]}  Bb4 {[%clk 0:00:11]} 77. Ke8 {[%clk 0:00:17]}  Ba3 {[%clk 0:00:12]} 78. Kf7 {[%clk 0:00:17]}  Bb4 {[%clk 0:00:12]} 79. Ke6 {[%clk 0:00:18]}  Ba3 {[%clk 0:00:13]} 80. Kf7 {[%clk 0:00:19]} 1/2-1/2


[Site "https://www.chess.com"]

[Event "Titled Tuesday Blitz June 21 Late 2022"]
[White "Wachinger, Guenther"]
[Black "Dardha, Daniel"]
[WhiteFideId "4604261"]
[BlackFideId "240990"]
[WhiteElo "2430"]
[BlackElo "2737"]
[Result "0-1"]
[Round "01"]
[TimeControl "180+1"]
[Date "2022.06.22"]
[WhiteClock "0:00:01"]
[BlackClock "0:00:08"]

1. e4 {[%clk 0:02:59]}  e5 {[%clk 0:01:53]} 2. Nf3 {[%clk 0:02:58]}  Nf6 {[%clk 0:01:52]} 3. Nc3 {[%clk 0:02:58]}  d5 {[%clk 0:01:51]} 4. exd5 {[%clk 0:02:46]}  e4 {[%clk 0:01:50]} 5. Qe2 {[%clk 0:02:46]}  Bd6 {[%clk 0:01:44]} 6. Nxe4 {[%clk 0:02:45]}  O-O {[%clk 0:01:44]} 7. Nxf6+ {[%clk 0:02:39]}  Qxf6 {[%clk 0:01:45]} 8. d3 {[%clk 0:02:38]}  Na6 {[%clk 0:01:41]} 9. c3 {[%clk 0:02:34]}  Bf5 {[%clk 0:01:33]} 10. Be3 {[%clk 0:02:34]}  Rfe8 {[%clk 0:01:29]} 11. O-O-O {[%clk 0:02:34]}  Nc5 {[%clk 0:01:21]} 12. Qd2 {[%clk 0:02:31]}  Na4 {[%clk 0:01:12]} 13. d4 {[%clk 0:02:13]}  a6 {[%clk 0:00:55]} 14. Bd3 {[%clk 0:02:13]}  Bxd3 {[%clk 0:00:52]} 15. Qxd3 {[%clk 0:02:13]}  b5 {[%clk 0:00:53]} 16. Rhe1 {[%clk 0:02:05]}  h6 {[%clk 0:00:49]} 17. Nd2 {[%clk 0:01:59]}  Nb6 {[%clk 0:00:43]} 18. Ne4 {[%clk 0:01:48]}  Qg6 {[%clk 0:00:43]} 19. Nxd6 {[%clk 0:01:45]}  Qxd6 {[%clk 0:00:44]} 20. g3 {[%clk 0:01:42]}  Qxd5 {[%clk 0:00:42]} 21. Kb1 {[%clk 0:01:42]}  a5 {[%clk 0:00:41]} 22. Bf4 {[%clk 0:01:39]}  c6 {[%clk 0:00:39]} 23. Re5 {[%clk 0:01:36]}  Rxe5 {[%clk 0:00:37]} 24. dxe5 {[%clk 0:01:37]}  Qg2 {[%clk 0:00:33]} 25. e6 {[%clk 0:01:31]}  fxe6 {[%clk 0:00:32]} 26. Qe3 {[%clk 0:01:31]}  Nc4 {[%clk 0:00:25]} 27. Qxe6+ {[%clk 0:01:31]}  Kh7 {[%clk 0:00:22]} 28. Qf5+ {[%clk 0:01:22]}  Kh8 {[%clk 0:00:22]} 29. Bc1 {[%clk 0:00:38]}  Re8 {[%clk 0:00:19]} 30. b3 {[%clk 0:00:38]}  Nb6 {[%clk 0:00:18]} 31. Be3 {[%clk 0:00:32]}  Nd5 {[%clk 0:00:18]} 32. Bd4 {[%clk 0:00:31]}  Qe4+ {[%clk 0:00:13]} 33. Qxe4 {[%clk 0:00:31]}  Rxe4 {[%clk 0:00:14]} 34. Kc2 {[%clk 0:00:31]}  Kg8 {[%clk 0:00:13]} 35. Kd3 {[%clk 0:00:29]}  Re6 {[%clk 0:00:13]} 36. Kd2 {[%clk 0:00:22]}  Kf7 {[%clk 0:00:13]} 37. Re1 {[%clk 0:00:22]}  Rd6 {[%clk 0:00:13]} 38. Kc2 {[%clk 0:00:19]}  Rd7 {[%clk 0:00:12]} 39. f4 {[%clk 0:00:18]}  Ne7 {[%clk 0:00:12]} 40. a3 {[%clk 0:00:14]}  Nf5 {[%clk 0:00:12]} 41. Bc5 {[%clk 0:00:11]}  h5 {[%clk 0:00:12]} 42. b4 {[%clk 0:00:12]}  a4 {[%clk 0:00:12]} 43. Re5 {[%clk 0:00:09]}  g6 {[%clk 0:00:11]} 44. Re2 {[%clk 0:00:07]}  Ng7 {[%clk 0:00:12]} 45. Bd4 {[%clk 0:00:07]}  Ne6 {[%clk 0:00:12]} 46. Be5 {[%clk 0:00:08]}  c5 {[%clk 0:00:12]} 47. Rd2 {[%clk 0:00:08]}  Rxd2+ {[%clk 0:00:10]} 48. Kxd2 {[%clk 0:00:09]}  Ke7 {[%clk 0:00:07]} 49. Ke3 {[%clk 0:00:08]}  Kd7 {[%clk 0:00:06]} 50. Ke4 {[%clk 0:00:08]}  Kc6 {[%clk 0:00:06]} 51. h3 {[%clk 0:00:06]}  Nf8 {[%clk 0:00:04]} 52. g4 {[%clk 0:00:06]}  hxg4 {[%clk 0:00:05]} 53. hxg4 {[%clk 0:00:06]}  Nd7 {[%clk 0:00:06]} 54. f5 {[%clk 0:00:06]}  gxf5+ {[%clk 0:00:07]} 55. gxf5 {[%clk 0:00:07]}  cxb4 {[%clk 0:00:06]} 56. cxb4 {[%clk 0:00:06]}  Nb6 {[%clk 0:00:07]} 57. f6 {[%clk 0:00:06]}  Kd7 {[%clk 0:00:07]} 58. Kf5 {[%clk 0:00:05]}  Nc4 {[%clk 0:00:07]} 59. Bd4 {[%clk 0:00:01]}  Nd6+ {[%clk 0:00:08]} 0-1


[Site "https://www.chess.com"]

[Event "Titled Tuesday Blitz June 21 Late 2022"]
[White "Xiong, Jeffery"]
[Black "Zhurbinsky, David"]
[WhiteFideId "2047640"]
[BlackFideId "2072904"]
[WhiteElo "2714"]
[BlackElo "2541"]
[Result "1-0"]
[Round "01"]
[TimeControl "180+1"]
[Date "2022.06.21"]
[WhiteClock "0:01:19"]
[BlackClock "0:00:05"]

1. e4 {[%clk 0:02:56]}  e5 {[%clk 0:02:59]} 2. Nf3 {[%clk 0:02:57]}  Nc6 {[%clk 0:02:59]} 3. Nc3 {[%clk 0:02:57]}  Nf6 {[%clk 0:02:59]} 4. d4 {[%clk 0:02:58]}  exd4 {[%clk 0:02:58]} 5. Nxd4 {[%clk 0:02:59]}  Bb4 {[%clk 0:02:59]} 6. Nxc6 {[%clk 0:03:00]}  bxc6 {[%clk 0:02:58]} 7. Bd3 {[%clk 0:03:00]}  O-O {[%clk 0:02:58]} 8. O-O {[%clk 0:03:01]}  d6 {[%clk 0:02:56]} 9. Bg5 {[%clk 0:02:59]}  h6 {[%clk 0:02:56]} 10. Bh4 {[%clk 0:02:59]}  Qe7 {[%clk 0:02:52]} 11. f4 {[%clk 0:02:58]}  Rb8 {[%clk 0:02:40]} 12. e5 {[%clk 0:02:58]}  dxe5 {[%clk 0:02:34]} 13. Ne4 {[%clk 0:02:58]}  Bc5+ {[%clk 0:02:01]} 14. Kh1 {[%clk 0:02:57]}  Rd8 {[%clk 0:01:32]} 15. fxe5 {[%clk 0:02:49]}  Nxe4 {[%clk 0:01:20]} 16. Bxe7 {[%clk 0:02:49]}  Bxe7 {[%clk 0:01:21]} 17. Qh5 {[%clk 0:02:35]}  g6 {[%clk 0:01:06]} 18. Qe2 {[%clk 0:02:27]}  Ng5 {[%clk 0:01:00]} 19. b3 {[%clk 0:02:21]}  h5 {[%clk 0:00:56]} 20. Qe3 {[%clk 0:02:18]}  c5 {[%clk 0:00:45]} 21. Rad1 {[%clk 0:02:16]}  Bg4 {[%clk 0:00:44]} 22. Be2 {[%clk 0:02:16]}  Bf5 {[%clk 0:00:40]} 23. Rxd8+ {[%clk 0:02:02]}  Rxd8 {[%clk 0:00:41]} 24. Rd1 {[%clk 0:02:03]}  Re8 {[%clk 0:00:35]} 25. Bb5 {[%clk 0:02:01]}  Rb8 {[%clk 0:00:34]} 26. Bc4 {[%clk 0:02:01]}  Ne4 {[%clk 0:00:28]} 27. e6 {[%clk 0:01:43]}  Bg5 {[%clk 0:00:20]} 28. exf7+ {[%clk 0:01:42]}  Kf8 {[%clk 0:00:20]} 29. Qg1 {[%clk 0:01:37]}  Bh4 {[%clk 0:00:16]} 30. g3 {[%clk 0:01:28]}  Bg4 {[%clk 0:00:08]} 31. Rf1 {[%clk 0:01:25]}  Bf6 {[%clk 0:00:07]} 32. Rxf6 {[%clk 0:01:25]}  Nxf6 {[%clk 0:00:08]} 33. Qxc5+ {[%clk 0:01:25]}  Kg7 {[%clk 0:00:08]} 34. f8=Q+ {[%clk 0:01:23]}  Rxf8 {[%clk 0:00:07]} 35. Qe7+ {[%clk 0:01:24]}  Kh6 {[%clk 0:00:04]} 36. Qxf8+ {[%clk 0:01:24]}  Kg5 {[%clk 0:00:05]} 37. Qe7 {[%clk 0:01:19]} 1-0


[Site "https://www.chess.com"]

[Event "Titled Tuesday Blitz June 21 Late 2022"]
[White "Zakarian, David"]
[Black "Indjic, Aleksandar"]
[WhiteFideId "13301276"]
[BlackFideId "911925"]
[WhiteElo "2457"]
[BlackElo "2814"]
[Result "0-1"]
[Round "01"]
[TimeControl "180+1"]
[Date "2022.06.22"]
[WhiteClock "0:00:23"]
[BlackClock "0:00:20"]

1. d4 {[%clk 0:03:00]}  Nf6 {[%clk 0:02:59]} 2. Nf3 {[%clk 0:03:00]}  e6 {[%clk 0:02:59]} 3. c4 {[%clk 0:03:00]}  c5 {[%clk 0:02:58]} 4. d5 {[%clk 0:03:00]}  d6 {[%clk 0:02:57]} 5. Nc3 {[%clk 0:02:58]}  exd5 {[%clk 0:02:15]} 6. cxd5 {[%clk 0:02:58]}  g6 {[%clk 0:02:11]} 7. Bf4 {[%clk 0:02:55]}  Bg7 {[%clk 0:02:10]} 8. Qa4+ {[%clk 0:02:49]}  Bd7 {[%clk 0:02:10]} 9. Qb3 {[%clk 0:02:48]}  O-O {[%clk 0:02:10]} 10. Bxd6 {[%clk 0:02:43]}  Ba4 {[%clk 0:02:09]} 11. Qxa4 {[%clk 0:02:31]}  Qxd6 {[%clk 0:02:07]} 12. e4 {[%clk 0:02:29]}  Nbd7 {[%clk 0:02:06]} 13. Be2 {[%clk 0:02:25]}  a6 {[%clk 0:02:03]} 14. O-O {[%clk 0:02:23]}  Rfe8 {[%clk 0:02:01]} 15. Qc2 {[%clk 0:02:17]}  b5 {[%clk 0:01:59]} 16. Nd2 {[%clk 0:02:05]}  Bh6 {[%clk 0:01:58]} 17. f3 {[%clk 0:02:02]}  Be3+ {[%clk 0:01:43]} 18. Kh1 {[%clk 0:02:02]}  Nh5 {[%clk 0:01:43]} 19. Nd1 {[%clk 0:01:55]}  Bd4 {[%clk 0:01:40]} 20. Nf2 {[%clk 0:01:38]}  Ndf6 {[%clk 0:01:17]} 21. Nb3 {[%clk 0:01:29]}  Be5 {[%clk 0:01:00]} 22. Qxc5 {[%clk 0:01:09]}  Qb8 {[%clk 0:00:47]} 23. Ng4 {[%clk 0:00:54]}  Nxg4 {[%clk 0:00:40]} 24. fxg4 {[%clk 0:00:55]}  Nf6 {[%clk 0:00:40]} 25. Qe3 {[%clk 0:00:44]}  Bxh2 {[%clk 0:00:37]} 26. Rxf6 {[%clk 0:00:44]}  Be5 {[%clk 0:00:36]} 27. Rff1 {[%clk 0:00:42]}  Bxb2 {[%clk 0:00:35]} 28. Rab1 {[%clk 0:00:40]}  Be5 {[%clk 0:00:35]} 29. Qf3 {[%clk 0:00:40]}  Ra7 {[%clk 0:00:34]} 30. Nc5 {[%clk 0:00:38]}  Qd8 {[%clk 0:00:29]} 31. Nd3 {[%clk 0:00:37]}  Bb8 {[%clk 0:00:29]} 32. g3 {[%clk 0:00:33]}  Rd7 {[%clk 0:00:21]} 33. Kg2 {[%clk 0:00:31]}  Qa5 {[%clk 0:00:17]} 34. Rb2 {[%clk 0:00:29]}  Qc3 {[%clk 0:00:17]} 35. Rfb1 {[%clk 0:00:28]}  Qd4 {[%clk 0:00:17]} 36. e5 {[%clk 0:00:25]}  Qxd5 {[%clk 0:00:15]} 37. Qxd5 {[%clk 0:00:26]}  Rxd5 {[%clk 0:00:16]} 38. Nf4 {[%clk 0:00:26]}  Rdxe5 {[%clk 0:00:16]} 39. Bf3 {[%clk 0:00:26]}  Re3 {[%clk 0:00:16]} 40. Re2 {[%clk 0:00:26]}  Bxf4 {[%clk 0:00:15]} 41. Rxe3 {[%clk 0:00:24]}  Bxe3 {[%clk 0:00:15]} 42. Re1 {[%clk 0:00:24]}  Re7 {[%clk 0:00:15]} 43. Bc6 {[%clk 0:00:23]}  Kg7 {[%clk 0:00:14]} 44. Kf3 {[%clk 0:00:22]}  Bc5 {[%clk 0:00:15]} 45. Rxe7 {[%clk 0:00:22]}  Bxe7 {[%clk 0:00:16]} 46. Bb7 {[%clk 0:00:22]}  a5 {[%clk 0:00:15]} 47. Ba6 {[%clk 0:00:23]}  b4 {[%clk 0:00:16]} 48. Bc4 {[%clk 0:00:23]}  Bd6 {[%clk 0:00:16]} 49. Bb3 {[%clk 0:00:23]}  Kf6 {[%clk 0:00:16]} 50. Bc4 {[%clk 0:00:21]}  Ke7 {[%clk 0:00:16]} 51. Bb3 {[%clk 0:00:21]}  h6 {[%clk 0:00:16]} 52. Bc4 {[%clk 0:00:21]}  Be5 {[%clk 0:00:16]} 53. Bb3 {[%clk 0:00:21]}  g5 {[%clk 0:00:17]} 54. Bc4 {[%clk 0:00:21]}  f6 {[%clk 0:00:17]} 55. Bb3 {[%clk 0:00:21]}  Kd6 {[%clk 0:00:18]} 56. Bc4 {[%clk 0:00:21]}  Kc5 {[%clk 0:00:18]} 57. Bb3 {[%clk 0:00:22]}  Kd4 {[%clk 0:00:19]} 58. Be6 {[%clk 0:00:22]}  Kc3 {[%clk 0:00:19]} 59. Bb3 {[%clk 0:00:22]}  Kb2 {[%clk 0:00:19]} 60. Be6 {[%clk 0:00:22]}  a4 {[%clk 0:00:20]} 61. Bf7 {[%clk 0:00:22]}  b3 {[%clk 0:00:20]} 62. axb3 {[%clk 0:00:23]}  axb3 {[%clk 0:00:20]} 63. Bxb3 {[%clk 0:00:23]}  Kxb3 {[%clk 0:00:20]} 0-1


[Site "https://www.chess.com"]

[Event "Titled Tuesday Blitz June 21 Late 2022"]
[White "Zanette, Edgard Vinicius"]
[Black "Artemenko, Oleg"]
[WhiteFideId "2109263"]
[BlackFideId "14201798"]
[WhiteElo "2182"]
[BlackElo "2287"]
[Result "1-0"]
[Round "01"]
[TimeControl "180+1"]
[Date "2022.06.22"]
[WhiteClock "0:00:21"]
[BlackClock "0:01:39"]

1. e4 {[%clk 0:03:00]}  e6 {[%clk 0:02:58]} 2. d4 {[%clk 0:02:59]}  d5 {[%clk 0:02:57]} 3. Nc3 {[%clk 0:02:59]}  Nf6 {[%clk 0:02:57]} 4. Bg5 {[%clk 0:02:57]}  Be7 {[%clk 0:02:56]} 5. e5 {[%clk 0:02:51]}  Nfd7 {[%clk 0:02:56]} 6. h4 {[%clk 0:02:51]}  h6 {[%clk 0:02:55]} 7. Bxe7 {[%clk 0:02:51]}  Qxe7 {[%clk 0:02:56]} 8. Qg4 {[%clk 0:02:50]}  g6 {[%clk 0:02:54]} 9. O-O-O {[%clk 0:02:47]}  a6 {[%clk 0:02:54]} 10. f4 {[%clk 0:02:47]}  h5 {[%clk 0:02:53]} 11. Qg5 {[%clk 0:02:37]}  c5 {[%clk 0:02:52]} 12. Nf3 {[%clk 0:02:31]}  Nc6 {[%clk 0:02:51]} 13. Be2 {[%clk 0:02:22]}  b5 {[%clk 0:02:49]} 14. Qxe7+ {[%clk 0:02:16]}  Kxe7 {[%clk 0:02:49]} 15. dxc5 {[%clk 0:02:04]}  Nxc5 {[%clk 0:02:50]} 16. a3 {[%clk 0:02:02]}  Bb7 {[%clk 0:02:47]} 17. Nd4 {[%clk 0:02:01]}  Nxd4 {[%clk 0:02:47]} 18. Rxd4 {[%clk 0:02:01]}  Rac8 {[%clk 0:02:47]} 19. Bf3 {[%clk 0:01:58]}  Rhd8 {[%clk 0:02:45]} 20. Kb1 {[%clk 0:01:54]}  Ne4 {[%clk 0:02:40]} 21. Bxe4 {[%clk 0:01:48]}  dxe4 {[%clk 0:02:41]} 22. Rhd1 {[%clk 0:01:48]}  Rxd4 {[%clk 0:02:40]} 23. Rxd4 {[%clk 0:01:46]}  e3 {[%clk 0:02:40]} 24. Rd3 {[%clk 0:01:34]}  Bxg2 {[%clk 0:02:40]} 25. Rxe3 {[%clk 0:01:34]}  Rd8 {[%clk 0:02:40]} 26. Kc1 {[%clk 0:01:33]}  Bc6 {[%clk 0:02:34]} 27. Rd3 {[%clk 0:01:28]}  Rc8 {[%clk 0:02:35]} 28. Kd2 {[%clk 0:01:28]}  Bb7 {[%clk 0:02:31]} 29. Rd6 {[%clk 0:01:24]}  Rc4 {[%clk 0:02:29]} 30. Rb6 {[%clk 0:01:24]}  Bc8 {[%clk 0:02:27]} 31. Ke3 {[%clk 0:01:23]}  Kd8 {[%clk 0:02:26]} 32. Rd6+ {[%clk 0:01:12]}  Kc7 {[%clk 0:02:26]} 33. Rd4 {[%clk 0:01:12]}  Rc5 {[%clk 0:02:23]} 34. Rd2 {[%clk 0:01:06]}  Bb7 {[%clk 0:02:21]} 35. Rd4 {[%clk 0:01:03]}  Kc8 {[%clk 0:02:19]} 36. Rd6 {[%clk 0:00:59]}  g5 {[%clk 0:02:11]} 37. hxg5 {[%clk 0:00:57]}  h4 {[%clk 0:02:10]} 38. Rd2 {[%clk 0:00:58]}  h3 {[%clk 0:02:07]} 39. Ne4 {[%clk 0:00:54]}  Bxe4 {[%clk 0:02:02]} 40. Kxe4 {[%clk 0:00:55]}  Kb7 {[%clk 0:01:57]} 41. c3 {[%clk 0:00:53]}  Rc8 {[%clk 0:01:55]} 42. Rh2 {[%clk 0:00:48]}  Rh8 {[%clk 0:01:54]} 43. Kf3 {[%clk 0:00:47]}  Kc6 {[%clk 0:01:46]} 44. Kg4 {[%clk 0:00:45]}  Kd5 {[%clk 0:01:46]} 45. Rxh3 {[%clk 0:00:45]}  Rxh3 {[%clk 0:01:42]} 46. Kxh3 {[%clk 0:00:44]}  Kc4 {[%clk 0:01:42]} 47. Kg4 {[%clk 0:00:42]}  Kb3 {[%clk 0:01:43]} 48. f5 {[%clk 0:00:41]}  exf5+ {[%clk 0:01:40]} 49. Kxf5 {[%clk 0:00:41]}  Kxb2 {[%clk 0:01:41]} 50. e6 {[%clk 0:00:38]}  fxe6+ {[%clk 0:01:40]} 51. Kxe6 {[%clk 0:00:39]}  Kxc3 {[%clk 0:01:33]} 52. g6 {[%clk 0:00:39]}  a5 {[%clk 0:01:33]} 53. g7 {[%clk 0:00:39]}  b4 {[%clk 0:01:34]} 54. axb4 {[%clk 0:00:38]}  axb4 {[%clk 0:01:35]} 55. g8=Q {[%clk 0:00:38]}  b3 {[%clk 0:01:36]} 56. Qc8+ {[%clk 0:00:35]}  Kd2 {[%clk 0:01:35]} 57. Qd7+ {[%clk 0:00:32]}  Kc1 {[%clk 0:01:35]} 58. Qc6+ {[%clk 0:00:31]}  Kd2 {[%clk 0:01:36]} 59. Qd5+ {[%clk 0:00:31]}  Kc2 {[%clk 0:01:37]} 60. Qc4+ {[%clk 0:00:31]}  Kb2 {[%clk 0:01:38]} 61. Kd5 {[%clk 0:00:30]}  Ka1 {[%clk 0:01:39]} 62. Qf1+ {[%clk 0:00:28]}  Ka2 {[%clk 0:01:39]} 63. Qa6+ {[%clk 0:00:25]}  Kb1 {[%clk 0:01:39]} 64. Kc4 {[%clk 0:00:25]}  Kc2 {[%clk 0:01:39]} 65. Qa4 {[%clk 0:00:24]}  Kb1 {[%clk 0:01:39]} 66. Kc3 {[%clk 0:00:22]}  b2 {[%clk 0:01:38]} 67. Qa3 {[%clk 0:00:20]}  Kc1 {[%clk 0:01:38]} 68. Qxb2+ {[%clk 0:00:21]}  Kd1 {[%clk 0:01:39]} 69. Qd2# {[%clk 0:00:21]} 1-0


[Site "https://www.chess.com"]

[Event "Titled Tuesday Blitz June 21 Late 2022"]
[White "Zhigalko, Sergei"]
[Black "Peatman, Carter"]
[WhiteFideId "13502956"]
[BlackFideId "2096480"]
[WhiteElo "2662"]
[BlackElo "2474"]
[Result "1-0"]
[Round "01"]
[TimeControl "180+1"]
[Date "2022.06.21"]
[WhiteClock "0:01:57"]
[BlackClock "0:00:03"]

1. e4 {[%clk 0:03:00]}  e5 {[%clk 0:02:58]} 2. Nf3 {[%clk 0:03:00]}  Nf6 {[%clk 0:02:57]} 3. d4 {[%clk 0:03:00]}  Nxe4 {[%clk 0:02:54]} 4. Bd3 {[%clk 0:03:00]}  Nc6 {[%clk 0:02:54]} 5. d5 {[%clk 0:02:59]}  Nd6 {[%clk 0:02:36]} 6. dxc6 {[%clk 0:02:57]}  e4 {[%clk 0:02:32]} 7. cxb7 {[%clk 0:02:57]}  Bxb7 {[%clk 0:02:30]} 8. Be2 {[%clk 0:02:58]}  exf3 {[%clk 0:02:27]} 9. Bxf3 {[%clk 0:02:59]}  Bxf3 {[%clk 0:01:36]} 10. Qxf3 {[%clk 0:02:59]}  Be7 {[%clk 0:01:37]} 11. O-O {[%clk 0:02:59]}  O-O {[%clk 0:01:36]} 12. Nc3 {[%clk 0:02:58]}  Bg5 {[%clk 0:01:30]} 13. Rd1 {[%clk 0:02:46]}  Bxc1 {[%clk 0:01:28]} 14. Raxc1 {[%clk 0:02:46]}  Rb8 {[%clk 0:01:27]} 15. b3 {[%clk 0:02:46]}  Qg5 {[%clk 0:01:22]} 16. Nd5 {[%clk 0:02:44]}  Rbc8 {[%clk 0:01:11]} 17. Qg3 {[%clk 0:02:32]}  Qxg3 {[%clk 0:00:47]} 18. hxg3 {[%clk 0:02:30]}  Rfe8 {[%clk 0:00:47]} 19. Nxc7 {[%clk 0:02:29]}  Rxc7 {[%clk 0:00:48]} 20. Rxd6 {[%clk 0:02:28]}  Re2 {[%clk 0:00:48]} 21. a4 {[%clk 0:02:18]}  Kf8 {[%clk 0:00:31]} 22. Kf1 {[%clk 0:02:09]}  Re6 {[%clk 0:00:17]} 23. Rd2 {[%clk 0:02:02]}  Ke7 {[%clk 0:00:16]} 24. Re1 {[%clk 0:01:59]}  g6 {[%clk 0:00:14]} 25. g4 {[%clk 0:01:57]}  h6 {[%clk 0:00:13]} 26. f3 {[%clk 0:01:57]}  Rc5 {[%clk 0:00:11]} 27. Kf2 {[%clk 0:01:57]}  Rce5 {[%clk 0:00:03]} 28. Rh1 {[%clk 0:01:55]}  h5 {[%clk 0:00:01]} 29. gxh5 {[%clk 0:01:56]}  gxh5 {[%clk 0:00:01]} 30. Rhd1 {[%clk 0:01:56]}  Rf5 {[%clk 0:00:02]} 31. Rxd7+ {[%clk 0:01:55]}  Kf6 {[%clk 0:00:02]} 32. R7d5 {[%clk 0:01:55]}  Rfe5 {[%clk 0:00:03]} 33. Rxe5 {[%clk 0:01:55]}  Rxe5 {[%clk 0:00:04]} 34. Rd6+ {[%clk 0:01:55]}  Ke7 {[%clk 0:00:03]} 35. Ra6 {[%clk 0:01:55]}  Rc5 {[%clk 0:00:04]} 36. Rxa7+ {[%clk 0:01:55]}  Kf6 {[%clk 0:00:04]} 37. c4 {[%clk 0:01:55]}  h4 {[%clk 0:00:04]} 38. Ra6+ {[%clk 0:01:55]}  Kg7 {[%clk 0:00:03]} 39. Rb6 {[%clk 0:01:56]}  Re5 {[%clk 0:00:03]} 40. Rb5 {[%clk 0:01:55]}  Re6 {[%clk 0:00:03]} 41. a5 {[%clk 0:01:56]}  Ra6 {[%clk 0:00:02]} 42. b4 {[%clk 0:01:56]}  Rc6 {[%clk 0:00:03]} 43. c5 {[%clk 0:01:56]}  Ra6 {[%clk 0:00:03]} 44. Rb6 {[%clk 0:01:56]}  Ra7 {[%clk 0:00:03]} 45. a6 {[%clk 0:01:57]}  Kf8 {[%clk 0:00:02]} 46. b5 {[%clk 0:01:57]}  Ke7 {[%clk 0:00:02]} 47. Rb7+ {[%clk 0:01:57]}  Kd8 {[%clk 0:00:02]} 48. Rxa7 {[%clk 0:01:57]}  Kc8 {[%clk 0:00:03]} 49. Rxf7 {[%clk 0:01:57]} 1-0


[Site "https://www.chess.com"]